[Event "Early-Titled-Tuesday-Blitz-June-18-2024"]
[Site "Chess.com"]
[Date "2024.06.18"]
[Round "4"]
[White "N_Mullodzhanov"]
[Black "AlphaPerseii"]
[Result "1/2-1/2"]
[WhiteElo "2556"]
[BlackElo "2398"]
[TimeControl "180+1"]
[EndTime "8:43:22 PDT"]
[Termination "Game drawn by stalemate"]

1. e4 {[%clk 0:03:00.9]} 1... c6 {[%clk 0:02:56.1]} 2. Nf3 {[%clk 0:02:59.8]}
2... d5 {[%clk 0:02:56.5]} 3. Nc3 {[%clk 0:03:00.1]} 3... dxe4 {[%clk
0:02:56.4]} 4. Nxe4 {[%clk 0:03:01]} 4... Nf6 {[%clk 0:02:57.1]} 5. Nxf6+ {[%clk
0:03:01]} 5... exf6 {[%clk 0:02:56.5]} 6. d4 {[%clk 0:03:01.9]} 6... Be6 {[%clk
0:02:55.2]} 7. c3 {[%clk 0:03:01]} 7... Bd6 {[%clk 0:02:55.2]} 8. Bd3 {[%clk
0:03:00.6]} 8... Qc7 {[%clk 0:02:55.2]} 9. O-O {[%clk 0:03:00.1]} 9... O-O
{[%clk 0:02:55]} 10. Qc2 {[%clk 0:02:59.8]} 10... h6 {[%clk 0:02:52]} 11. Re1
{[%clk 0:02:59.9]} 11... Nd7 {[%clk 0:02:50.9]} 12. Be3 {[%clk 0:02:55.7]} 12...
a5 {[%clk 0:02:50.5]} 13. a3 {[%clk 0:02:54.6]} 13... Rfe8 {[%clk 0:02:42.5]}
14. Bh7+ {[%clk 0:02:53.6]} 14... Kh8 {[%clk 0:02:42.3]} 15. Bf5 {[%clk
0:02:53.3]} 15... Nb6 {[%clk 0:02:38]} 16. Rad1 {[%clk 0:02:49.1]} 16... a4
{[%clk 0:02:32.1]} 17. Bxe6 {[%clk 0:02:43.1]} 17... Rxe6 {[%clk 0:02:32.2]} 18.
c4 {[%clk 0:02:36.1]} 18... Bf4 {[%clk 0:02:19.2]} 19. Bxf4 {[%clk 0:02:16.5]}
19... Qxf4 {[%clk 0:02:14.6]} 20. Rxe6 {[%clk 0:02:16.4]} 20... fxe6 {[%clk
0:02:15.5]} 21. Re1 {[%clk 0:02:16.9]} 21... Re8 {[%clk 0:01:57.2]} 22. c5
{[%clk 0:02:07.8]} 22... Nd7 {[%clk 0:01:57.6]} 23. Re4 {[%clk 0:01:51.8]} 23...
Qf5 {[%clk 0:01:52.8]} 24. Nh4 {[%clk 0:01:50]} 24... Qh5 {[%clk 0:01:52.7]} 25.
g3 {[%clk 0:01:08.3]} 25... e5 {[%clk 0:01:43.2]} 26. Qxa4 {[%clk 0:01:03.9]}
26... f5 {[%clk 0:00:51.2]} 27. Re1 {[%clk 0:00:57.1]} 27... exd4 {[%clk
0:00:26.8]} 28. Rxe8+ {[%clk 0:00:54.6]} 28... Qxe8 {[%clk 0:00:27.7]} 29. Qxd4
{[%clk 0:00:53.9]} 29... Qe1+ {[%clk 0:00:28.4]} 30. Kg2 {[%clk 0:00:53.6]}
30... Qe4+ {[%clk 0:00:29.1]} 31. Qxe4 {[%clk 0:00:52.5]} 31... fxe4 {[%clk
0:00:30]} 32. b4 {[%clk 0:00:51.3]} 32... Ne5 {[%clk 0:00:27.6]} 33. Nf5 {[%clk
0:00:48.1]} 33... Nc4 {[%clk 0:00:25.4]} 34. Nd6 {[%clk 0:00:48.3]} 34... Nxa3
{[%clk 0:00:25.6]} 35. Nxb7 {[%clk 0:00:42.7]} 35... Kg8 {[%clk 0:00:18.7]} 36.
Nd6 {[%clk 0:00:41.3]} 36... Kf8 {[%clk 0:00:12.4]} 37. Kf1 {[%clk 0:00:14.8]}
37... Ke7 {[%clk 0:00:12.3]} 38. Nxe4 {[%clk 0:00:13.5]} 38... Nc2 {[%clk
0:00:11.9]} 39. Ke2 {[%clk 0:00:05.4]} 39... Nxb4 {[%clk 0:00:12.3]} 40. Ke3
{[%clk 0:00:05.9]} 40... Nd5+ {[%clk 0:00:12.2]} 41. Kd4 {[%clk 0:00:06.4]}
41... Ke6 {[%clk 0:00:11.6]} 42. f4 {[%clk 0:00:06.9]} 42... Ne7 {[%clk
0:00:11.1]} 43. g4 {[%clk 0:00:05.8]} 43... h5 {[%clk 0:00:08.9]} 44. Ng5+
{[%clk 0:00:05.6]} 44... Kd7 {[%clk 0:00:08]} 45. h3 {[%clk 0:00:04]} 45... hxg4
{[%clk 0:00:07.8]} 46. hxg4 {[%clk 0:00:04.9]} 46... Nd5 {[%clk 0:00:08.3]} 47.
Nh3 {[%clk 0:00:04.3]} 47... g6 {[%clk 0:00:06.4]} 48. Ke5 {[%clk 0:00:04.7]}
48... Ke7 {[%clk 0:00:06]} 49. Ng5 {[%clk 0:00:04.2]} 49... Nb4 {[%clk
0:00:04.8]} 50. Ne4 {[%clk 0:00:04.3]} 50... Nd3+ {[%clk 0:00:05.1]} 51. Kd4
{[%clk 0:00:04.7]} 51... Nxf4 {[%clk 0:00:05.6]} 52. Ke3 {[%clk 0:00:04]} 52...
Ne6 {[%clk 0:00:05.9]} 53. Kf3 {[%clk 0:00:03.4]} 53... Nd4+ {[%clk 0:00:06.2]}
54. Ke3 {[%clk 0:00:03.6]} 54... Ne6 {[%clk 0:00:06.7]} 55. Kd3 {[%clk
0:00:03.9]} 55... Nf4+ {[%clk 0:00:07.2]} 56. Kc4 {[%clk 0:00:03.4]} 56... Ne6
{[%clk 0:00:06.4]} 57. Nd2 {[%clk 0:00:03.7]} 57... Nc7 {[%clk 0:00:06]} 58. Nf3
{[%clk 0:00:03.8]} 58... Ke6 {[%clk 0:00:06.3]} 59. Kd4 {[%clk 0:00:03.4]} 59...
Nb5+ {[%clk 0:00:06.5]} 60. Ke4 {[%clk 0:00:03.7]} 60... Kf6 {[%clk 0:00:04.2]}
61. Ne5 {[%clk 0:00:01.6]} 61... Na7 {[%clk 0:00:02.9]} 62. Nc4 {[%clk
0:00:01.3]} 62... Nc8 {[%clk 0:00:02.2]} 63. Na5 {[%clk 0:00:01.8]} 63... Ne7
{[%clk 0:00:02.7]} 64. Nc4 {[%clk 0:00:02.3]} 64... Kg5 {[%clk 0:00:03.2]} 65.
Ne5 {[%clk 0:00:01.8]} 65... Kf6 {[%clk 0:00:03]} 66. Nf3 {[%clk 0:00:02.1]}
66... Ke6 {[%clk 0:00:03.2]} 67. Nd4+ {[%clk 0:00:02.1]} 67... Kf6 {[%clk
0:00:03.5]} 68. Kf4 {[%clk 0:00:02.8]} 68... Nd5+ {[%clk 0:00:03.2]} 69. Kf3
{[%clk 0:00:03.4]} 69... Ne7 {[%clk 0:00:04.1]} 70. Ke4 {[%clk 0:00:04]} 70...
Kg5 {[%clk 0:00:04.5]} 71. Kf3 {[%clk 0:00:04.5]} 71... Kf6 {[%clk 0:00:04.9]}
72. Nc2 {[%clk 0:00:03.8]} 72... Ke5 {[%clk 0:00:05.1]} 73. Ke3 {[%clk
0:00:03.9]} 73... Kd5 {[%clk 0:00:05.5]} 74. Kf4 {[%clk 0:00:03.5]} 74... Kxc5
{[%clk 0:00:05.7]} 75. Ke5 {[%clk 0:00:04.4]} 75... Kc4 {[%clk 0:00:06.1]} 76.
Kf6 {[%clk 0:00:04.8]} 76... Kd3 {[%clk 0:00:05.4]} 77. Nb4+ {[%clk 0:00:04.1]}
77... Kc4 {[%clk 0:00:04.4]} 78. Na6 {[%clk 0:00:04.2]} 78... Nd5+ {[%clk
0:00:02.9]} 79. Kxg6 {[%clk 0:00:04.3]} 79... Kb5 {[%clk 0:00:03.5]} 80. Nb8
{[%clk 0:00:02.9]} 80... c5 {[%clk 0:00:03.9]} 81. Kf7 {[%clk 0:00:03.2]} 81...
c4 {[%clk 0:00:04.3]} 82. g5 {[%clk 0:00:03.5]} 82... Nf4 {[%clk 0:00:04.3]} 83.
Nd7 {[%clk 0:00:03.7]} 83... c3 {[%clk 0:00:04.5]} 84. Ne5 {[%clk 0:00:03.7]}
84... c2 {[%clk 0:00:04.6]} 85. g6 {[%clk 0:00:03]} 85... c1=Q {[%clk
0:00:04.9]} 86. g7 {[%clk 0:00:03.5]} 86... Qc7+ {[%clk 0:00:05.2]} 87. Nd7
{[%clk 0:00:02.6]} 87... Qxd7+ {[%clk 0:00:05.3]} 88. Kf6 {[%clk 0:00:02.6]}
88... Qe6+ {[%clk 0:00:05.5]} 89. Kg5 {[%clk 0:00:02.8]} 89... Qg8 {[%clk
0:00:05.9]} 90. Kh4 {[%clk 0:00:02.7]} 90... Qxg7 {[%clk 0:00:06.1]} 1/2-1/2

[Event "Early-Titled-Tuesday-Blitz-June-18-2024"]
[Site "Chess.com"]
[Date "2024.06.18"]
[Round "4"]
[White "tetrix83"]
[Black "Attacker_2006"]
[Result "1/2-1/2"]
[WhiteElo "2680"]
[BlackElo "2478"]
[TimeControl "180+1"]
[EndTime "8:43:36 PDT"]
[Termination "Game drawn by repetition"]

1. e4 {[%clk 0:03:00.9]} 1... c5 {[%clk 0:02:58.1]} 2. Nf3 {[%clk 0:03:00.5]}
2... e6 {[%clk 0:02:57.7]} 3. g3 {[%clk 0:03:00]} 3... Nc6 {[%clk 0:02:56.7]} 4.
Bg2 {[%clk 0:02:59.8]} 4... Nf6 {[%clk 0:02:57.1]} 5. d3 {[%clk 0:02:59.3]} 5...
e5 {[%clk 0:02:57.4]} 6. O-O {[%clk 0:02:55.9]} 6... Be7 {[%clk 0:02:58]} 7. c3
{[%clk 0:02:55.3]} 7... O-O {[%clk 0:02:58.5]} 8. Re1 {[%clk 0:02:48.9]} 8... d6
{[%clk 0:02:57.2]} 9. a3 {[%clk 0:02:48.4]} 9... Bg4 {[%clk 0:02:57.7]} 10. h3
{[%clk 0:02:43.4]} 10... Bh5 {[%clk 0:02:55.6]} 11. b4 {[%clk 0:02:39.5]} 11...
b5 {[%clk 0:02:54.1]} 12. Nbd2 {[%clk 0:02:30.4]} 12... a5 {[%clk 0:02:52.8]}
13. Rb1 {[%clk 0:02:27.2]} 13... axb4 {[%clk 0:02:52.4]} 14. axb4 {[%clk
0:02:25.5]} 14... cxb4 {[%clk 0:02:53]} 15. cxb4 {[%clk 0:02:25.6]} 15... Bg6
{[%clk 0:02:53.4]} 16. Nf1 {[%clk 0:02:18.4]} 16... d5 {[%clk 0:02:51.1]} 17.
Nh4 {[%clk 0:02:13.5]} 17... dxe4 {[%clk 0:02:48.8]} 18. Nxg6 {[%clk 0:02:13.5]}
18... hxg6 {[%clk 0:02:48.4]} 19. Bxe4 {[%clk 0:02:02.8]} 19... Nxe4 {[%clk
0:02:45.6]} 20. Rxe4 {[%clk 0:02:03.4]} 20... Qd5 {[%clk 0:02:43.8]} 21. Ne3
{[%clk 0:01:58.3]} 21... Qe6 {[%clk 0:02:43.7]} 22. Nc2 {[%clk 0:01:48.9]} 22...
Qxh3 {[%clk 0:02:38.9]} 23. Qf3 {[%clk 0:01:47.1]} 23... Qf5 {[%clk 0:02:35.6]}
24. Qe2 {[%clk 0:01:33.5]} 24... Rfd8 {[%clk 0:02:32.9]} 25. Bb2 {[%clk
0:01:25.8]} 25... Bf6 {[%clk 0:02:29.6]} 26. Ne3 {[%clk 0:01:16.6]} 26... Qd7
{[%clk 0:02:27.6]} 27. Ng4 {[%clk 0:01:12.5]} 27... Qxd3 {[%clk 0:02:25.8]} 28.
Qxd3 {[%clk 0:00:54.6]} 28... Rxd3 {[%clk 0:02:26.7]} 29. Nxe5 {[%clk
0:00:54.5]} 29... Nxe5 {[%clk 0:02:24.8]} 30. Bxe5 {[%clk 0:00:54.3]} 30... Rad8
{[%clk 0:02:20.6]} 31. Kg2 {[%clk 0:00:46.2]} 31... Rd2 {[%clk 0:02:07.5]} 32.
Bc7 {[%clk 0:00:32.7]} 32... Rc8 {[%clk 0:02:01.2]} 33. Bf4 {[%clk 0:00:29.9]}
33... Ra2 {[%clk 0:01:57.9]} 34. Be3 {[%clk 0:00:28.8]} 34... g5 {[%clk
0:01:52.2]} 35. Rd1 {[%clk 0:00:26.8]} 35... Rc4 {[%clk 0:01:46]} 36. Rxc4
{[%clk 0:00:23.1]} 36... bxc4 {[%clk 0:01:46.9]} 37. b5 {[%clk 0:00:23]} 37...
Rb2 {[%clk 0:01:46.2]} 38. b6 {[%clk 0:00:23.1]} 38... c3 {[%clk 0:01:46.6]} 39.
Rd6 {[%clk 0:00:21.4]} 39... Kh7 {[%clk 0:01:43.1]} 40. Rc6 {[%clk 0:00:20.5]}
40... g4 {[%clk 0:01:39.6]} 41. Kf1 {[%clk 0:00:18.6]} 41... c2 {[%clk
0:01:37.4]} 42. Kg2 {[%clk 0:00:18.8]} 42... Kg6 {[%clk 0:01:35.1]} 43. Rc7
{[%clk 0:00:17.9]} 43... Kf5 {[%clk 0:01:31.3]} 44. Rc5+ {[%clk 0:00:15.9]}
44... Ke4 {[%clk 0:01:30.8]} 45. Rc7 {[%clk 0:00:14.9]} 45... Kd3 {[%clk
0:01:27.4]} 46. Rd7+ {[%clk 0:00:14.1]} 46... Ke2 {[%clk 0:01:26.1]} 47. Rc7
{[%clk 0:00:12.2]} 47... Kd3 {[%clk 0:01:18.9]} 48. Rd7+ {[%clk 0:00:12.3]}
48... Kc4 {[%clk 0:01:19.5]} 49. b7 {[%clk 0:00:12.5]} 49... Rb5 {[%clk
0:01:07.8]} 50. Bf4 {[%clk 0:00:08.9]} 50... Be5 {[%clk 0:01:01.4]} 51. Bxe5
{[%clk 0:00:09.1]} 51... c1=Q {[%clk 0:00:43.9]} 52. Rc7+ {[%clk 0:00:09]} 52...
Kd5 {[%clk 0:00:36.6]} 53. b8=Q {[%clk 0:00:03.7]} 53... Rxb8 {[%clk 0:00:28]}
54. Rxc1 {[%clk 0:00:03.7]} 54... Kxe5 {[%clk 0:00:28.7]} 55. Rc7 {[%clk
0:00:04.1]} 55... Kf6 {[%clk 0:00:26.9]} 56. Rc6+ {[%clk 0:00:04.5]} 56... Kg5
{[%clk 0:00:26.6]} 57. Rc5+ {[%clk 0:00:05]} 57... f5 {[%clk 0:00:27]} 58. Rc7
{[%clk 0:00:05.3]} 58... g6 {[%clk 0:00:26.9]} 59. Rc6 {[%clk 0:00:05.6]} 59...
Rb2 {[%clk 0:00:27]} 60. Rd6 {[%clk 0:00:05.9]} 60... Rb3 {[%clk 0:00:27]} 61.
Rc6 {[%clk 0:00:06.3]} 61... Rf3 {[%clk 0:00:26.8]} 62. Rd6 {[%clk 0:00:06.4]}
62... Ra3 {[%clk 0:00:25.9]} 63. Rc6 {[%clk 0:00:06.8]} 63... Ra8 {[%clk
0:00:25.8]} 64. Rb6 {[%clk 0:00:07.1]} 64... Rf8 {[%clk 0:00:25.8]} 65. Rc6
{[%clk 0:00:07.2]} 65... Kh6 {[%clk 0:00:26.1]} 66. Rb6 {[%clk 0:00:07.1]} 66...
Kg7 {[%clk 0:00:26.5]} 67. Rb7+ {[%clk 0:00:07.1]} 67... Rf7 {[%clk 0:00:26.7]}
68. Rb4 {[%clk 0:00:06.9]} 68... g5 {[%clk 0:00:26.1]} 69. Rb5 {[%clk
0:00:06.3]} 69... Kg6 {[%clk 0:00:26]} 70. Rb6+ {[%clk 0:00:06.7]} 70... Rf6
{[%clk 0:00:26.7]} 71. Rb8 {[%clk 0:00:05.4]} 71... f4 {[%clk 0:00:26.9]} 72.
gxf4 {[%clk 0:00:04.6]} 72... gxf4 {[%clk 0:00:27.1]} 73. Rb5 {[%clk 0:00:05]}
73... Rf5 {[%clk 0:00:27]} 74. Rb6+ {[%clk 0:00:05.1]} 74... Kg5 {[%clk
0:00:27.2]} 75. Rb8 {[%clk 0:00:05.4]} 75... Rf6 {[%clk 0:00:27.1]} 76. Rg8+
{[%clk 0:00:05.5]} 76... Kh4 {[%clk 0:00:26.1]} 77. Rh8+ {[%clk 0:00:05.6]}
77... Kg5 {[%clk 0:00:26.7]} 78. Rg8+ {[%clk 0:00:06.1]} 78... Kf5 {[%clk
0:00:27.3]} 79. Re8 {[%clk 0:00:06]} 79... Re6 {[%clk 0:00:26.1]} 80. Rf8+
{[%clk 0:00:06.2]} 80... Ke4 {[%clk 0:00:26]} 81. Rg8 {[%clk 0:00:06.5]} 81...
Kf5 {[%clk 0:00:17.5]} 82. Rf8+ {[%clk 0:00:06.8]} 82... Rf6 {[%clk 0:00:15.4]}
83. Rg8 {[%clk 0:00:07.2]} 83... Rg6 {[%clk 0:00:15]} 84. Rf8+ {[%clk
0:00:07.4]} 84... Ke4 {[%clk 0:00:14.4]} 85. Re8+ {[%clk 0:00:07.6]} 85... Kd3
{[%clk 0:00:15]} 86. Rd8+ {[%clk 0:00:07.8]} 86... Ke4 {[%clk 0:00:11.1]} 87.
Re8+ {[%clk 0:00:08.1]} 87... Kd5 {[%clk 0:00:11.8]} 88. Rf8 {[%clk 0:00:07.8]}
88... Ke5 {[%clk 0:00:11.2]} 89. Re8+ {[%clk 0:00:08.1]} 89... Re6 {[%clk
0:00:10.9]} 90. Rg8 {[%clk 0:00:08.2]} 90... Kf5 {[%clk 0:00:07.1]} 91. Rf8+
{[%clk 0:00:08.5]} 1/2-1/2

[Event "Early-Titled-Tuesday-Blitz-June-18-2024"]
[Site "Chess.com"]
[Date "2024.06.18"]
[Round "4"]
[White "Erdnya15"]
[Black "chessbaerchen"]
[Result "1/2-1/2"]
[WhiteElo "2512"]
[BlackElo "2687"]
[TimeControl "180+1"]
[EndTime "8:43:37 PDT"]
[Termination "Game drawn by stalemate"]

1. e4 {[%clk 0:02:57.1]} 1... e6 {[%clk 0:03:00.3]} 2. d4 {[%clk 0:02:57.2]}
2... d5 {[%clk 0:03:00.5]} 3. exd5 {[%clk 0:02:58.1]} 3... exd5 {[%clk 0:03:01]}
4. Nf3 {[%clk 0:02:59]} 4... Nf6 {[%clk 0:03:01.3]} 5. Bd3 {[%clk 0:02:59.6]}
5... c5 {[%clk 0:03:00.9]} 6. O-O {[%clk 0:02:57.8]} 6... c4 {[%clk 0:03:01]} 7.
Re1+ {[%clk 0:02:58.2]} 7... Be7 {[%clk 0:03:01.5]} 8. Bf1 {[%clk 0:02:59.1]}
8... O-O {[%clk 0:03:00.5]} 9. b3 {[%clk 0:03:00]} 9... cxb3 {[%clk 0:03:00.6]}
10. axb3 {[%clk 0:03:00.9]} 10... Nc6 {[%clk 0:03:00.6]} 11. c3 {[%clk
0:03:01.4]} 11... h6 {[%clk 0:02:59.5]} 12. Bd3 {[%clk 0:03:02.3]} 12... Re8
{[%clk 0:02:59]} 13. Nbd2 {[%clk 0:03:02.4]} 13... Bd6 {[%clk 0:02:54.9]} 14.
Nf1 {[%clk 0:02:37.2]} 14... Bg4 {[%clk 0:02:44.2]} 15. Ne3 {[%clk 0:02:35.6]}
15... Bh5 {[%clk 0:02:40.9]} 16. b4 {[%clk 0:02:05.5]} 16... a6 {[%clk
0:02:38.1]} 17. h3 {[%clk 0:01:42.7]} 17... Qd7 {[%clk 0:02:32.7]} 18. Be2
{[%clk 0:01:14.8]} 18... Bg6 {[%clk 0:02:21.1]} 19. Qb3 {[%clk 0:00:59.4]} 19...
Bf4 {[%clk 0:02:15.4]} 20. Nf1 {[%clk 0:00:44.7]} 20... Bc7 {[%clk 0:01:51.7]}
21. Ne3 {[%clk 0:00:43.4]} 21... Rad8 {[%clk 0:01:50.9]} 22. Bf1 {[%clk
0:00:28.8]} 22... Be4 {[%clk 0:01:38]} 23. Nd2 {[%clk 0:00:20.9]} 23... Bg6
{[%clk 0:01:22.5]} 24. g3 {[%clk 0:00:16.4]} 24... Ne4 {[%clk 0:01:20.1]} 25.
Bg2 {[%clk 0:00:14.3]} 25... Nf6 {[%clk 0:00:59.7]} 26. Bb2 {[%clk 0:00:08.5]}
26... Ne7 {[%clk 0:00:56.4]} 27. Kh2 {[%clk 0:00:07.5]} 27... Bf5 {[%clk
0:00:47.1]} 28. Nxf5 {[%clk 0:00:02.8]} 28... Nxf5 {[%clk 0:00:48]} 29. c4
{[%clk 0:00:03.7]} 29... dxc4 {[%clk 0:00:42.6]} 30. Qxc4 {[%clk 0:00:03.9]}
30... h5 {[%clk 0:00:37.1]} 31. Kg1 {[%clk 0:00:02.8]} 31... h4 {[%clk
0:00:36.9]} 32. g4 {[%clk 0:00:03.2]} 32... Nd6 {[%clk 0:00:35.6]} 33. Qd3
{[%clk 0:00:03.8]} 33... Nb5 {[%clk 0:00:32]} 34. Nf3 {[%clk 0:00:04]} 34... Nd5
{[%clk 0:00:30.9]} 35. Ne5 {[%clk 0:00:01.3]} 35... Bxe5 {[%clk 0:00:30.1]} 36.
dxe5 {[%clk 0:00:02.2]} 36... Nxb4 {[%clk 0:00:28.4]} 37. Qxd7 {[%clk
0:00:03.1]} 37... Rxd7 {[%clk 0:00:28.9]} 38. Rad1 {[%clk 0:00:04]} 38... Nd3
{[%clk 0:00:27]} 39. Re3 {[%clk 0:00:03.5]} 39... Red8 {[%clk 0:00:26.9]} 40.
Ba1 {[%clk 0:00:03.2]} 40... Nf4 {[%clk 0:00:23.2]} 41. Rde1 {[%clk 0:00:01.9]}
41... g5 {[%clk 0:00:19.8]} 42. Be4 {[%clk 0:00:01.8]} 42... Re7 {[%clk
0:00:19]} 43. Bf5 {[%clk 0:00:02.1]} 43... Rd5 {[%clk 0:00:18.5]} 44. e6 {[%clk
0:00:02.4]} 44... fxe6 {[%clk 0:00:17.9]} 45. Bxe6+ {[%clk 0:00:02.2]} 45...
Nxe6 {[%clk 0:00:18.4]} 46. Rxe6 {[%clk 0:00:03.1]} 46... Rxe6 {[%clk 0:00:19]}
47. Rxe6 {[%clk 0:00:03.4]} 47... Rd1+ {[%clk 0:00:19.6]} 48. Kg2 {[%clk
0:00:01.5]} 48... Rxa1 {[%clk 0:00:20.5]} 49. Rg6+ {[%clk 0:00:02.2]} 49... Kf7
{[%clk 0:00:20.6]} 50. Rxg5 {[%clk 0:00:03.1]} 50... Nd4 {[%clk 0:00:19.5]} 51.
Rd5 {[%clk 0:00:03.2]} 51... Ne6 {[%clk 0:00:19.4]} 52. Rd7+ {[%clk 0:00:03.4]}
52... Kf6 {[%clk 0:00:20.1]} 53. Rxb7 {[%clk 0:00:04.3]} 53... Nf4+ {[%clk
0:00:19.9]} 54. Kh2 {[%clk 0:00:02]} 54... Ra3 {[%clk 0:00:19.9]} 55. Rb4 {[%clk
0:00:01.8]} 55... Rxh3+ {[%clk 0:00:18.8]} 56. Kg1 {[%clk 0:00:02.5]} 56... Kg5
{[%clk 0:00:18]} 57. Ra4 {[%clk 0:00:02.9]} 57... Kxg4 {[%clk 0:00:17.5]} 58.
Rxa6 {[%clk 0:00:03.5]} 58... Rc3 {[%clk 0:00:17.7]} 59. Rh6 {[%clk 0:00:03.2]}
59... h3 {[%clk 0:00:15.2]} 60. Rf6 {[%clk 0:00:02.8]} 60... Rc1+ {[%clk
0:00:14.3]} 61. Kh2 {[%clk 0:00:02.9]} 61... Rc2 {[%clk 0:00:15]} 62. Kg1 {[%clk
0:00:02.4]} 62... Kf3 {[%clk 0:00:11]} 63. Ra6 {[%clk 0:00:02.1]} 63... Rc1+
{[%clk 0:00:09.7]} 64. Kh2 {[%clk 0:00:02.1]} 64... Kxf2 {[%clk 0:00:10.4]} 65.
Ra2+ {[%clk 0:00:02.1]} 65... Kf3 {[%clk 0:00:10.9]} 66. Ra3+ {[%clk 0:00:02.3]}
66... Kg4 {[%clk 0:00:11.6]} 67. Ra2 {[%clk 0:00:01.5]} 67... Rf1 {[%clk
0:00:10.8]} 68. Ra8 {[%clk 0:00:01.5]} 68... Rf2+ {[%clk 0:00:10.9]} 69. Kg1
{[%clk 0:00:02.2]} 69... Rg2+ {[%clk 0:00:11.4]} 70. Kh1 {[%clk 0:00:02.8]}
70... Kg3 {[%clk 0:00:11.8]} 71. Ra3+ {[%clk 0:00:02.6]} 71... Kf2 {[%clk
0:00:10.6]} 72. Ra2+ {[%clk 0:00:02.9]} 72... Kf3 {[%clk 0:00:07.1]} 73. Ra3+
{[%clk 0:00:02.7]} 73... Kg4 {[%clk 0:00:07.4]} 74. Ra8 {[%clk 0:00:02.5]} 74...
Re2 {[%clk 0:00:07.5]} 75. Ra3 {[%clk 0:00:02]} 75... Re1+ {[%clk 0:00:07.2]}
76. Kh2 {[%clk 0:00:02.1]} 76... Re2+ {[%clk 0:00:07.7]} 77. Kh1 {[%clk
0:00:02.3]} 77... Nh5 {[%clk 0:00:08.3]} 78. Ra4+ {[%clk 0:00:02.1]} 78... Kf3
{[%clk 0:00:08.6]} 79. Ra3+ {[%clk 0:00:02.4]} 79... Re3 {[%clk 0:00:09]} 80.
Ra2 {[%clk 0:00:01]} 80... Ng3+ {[%clk 0:00:09.1]} 81. Kh2 {[%clk 0:00:01.9]}
81... Kg4 {[%clk 0:00:08.7]} 82. Ra4+ {[%clk 0:00:02.4]} 82... Ne4 {[%clk
0:00:09.2]} 83. Ra2 {[%clk 0:00:02.1]} 83... Re1 {[%clk 0:00:08.2]} 84. Rb2
{[%clk 0:00:02]} 84... Ng5 {[%clk 0:00:07.3]} 85. Rb4+ {[%clk 0:00:02.3]} 85...
Kh5 {[%clk 0:00:08]} 86. Rb5 {[%clk 0:00:02]} 86... Re2+ {[%clk 0:00:08.3]} 87.
Kh1 {[%clk 0:00:02.4]} 87... Kh4 {[%clk 0:00:08]} 88. Rb8 {[%clk 0:00:02.1]}
88... Nf3 {[%clk 0:00:07.4]} 89. Rh8+ {[%clk 0:00:02.6]} 89... Kg3 {[%clk
0:00:07.9]} 90. Rxh3+ {[%clk 0:00:02.4]} 90... Kg4 {[%clk 0:00:08.5]} 91. Rh8
{[%clk 0:00:01.8]} 91... Re1+ {[%clk 0:00:07.7]} 92. Kg2 {[%clk 0:00:02]} 92...
Re2+ {[%clk 0:00:08.4]} 93. Kf1 {[%clk 0:00:02.6]} 93... Rb2 {[%clk 0:00:08.1]}
94. Rg8+ {[%clk 0:00:03.1]} 94... Kf4 {[%clk 0:00:08.4]} 95. Rf8+ {[%clk
0:00:03.3]} 95... Ke3 {[%clk 0:00:09]} 96. Re8+ {[%clk 0:00:03.6]} 96... Kd3
{[%clk 0:00:09.7]} 97. Re3+ {[%clk 0:00:03.3]} 97... Kxe3 {[%clk 0:00:08.4]}
1/2-1/2

[Event "Early-Titled-Tuesday-Blitz-June-18-2024"]
[Site "Chess.com"]
[Date "2024.06.18"]
[Round "5"]
[White "Lupul_Cenusiu"]
[Black "ab-lsv"]
[Result "1-0"]
[WhiteElo "2732"]
[BlackElo "2353"]
[TimeControl "180+1"]
[EndTime "8:52:20 PDT"]
[Termination "Lupul_Cenusiu won by resignation"]

1. e4 {[%clk 0:03:00.9]} 1... c6 {[%clk 0:02:59.4]} 2. d4 {[%clk 0:02:59.8]}
2... d5 {[%clk 0:03:00.3]} 3. exd5 {[%clk 0:03:00.7]} 3... cxd5 {[%clk 0:03:01]}
4. Bd3 {[%clk 0:03:00.7]} 4... Nf6 {[%clk 0:03:00.8]} 5. c3 {[%clk 0:03:00.8]}
5... Bg4 {[%clk 0:03:00.4]} 6. Qb3 {[%clk 0:02:59.3]} 6... Qc7 {[%clk
0:03:00.7]} 7. Ne2 {[%clk 0:02:19.5]} 7... Bxe2 {[%clk 0:02:58.5]} 8. Bxe2
{[%clk 0:02:19]} 8... e6 {[%clk 0:02:56.2]} 9. Bf4 {[%clk 0:02:13.2]} 9... Qd7
{[%clk 0:02:55.3]} 10. Bxb8 {[%clk 0:02:05.5]} 10... Rxb8 {[%clk 0:02:55.2]} 11.
Bb5 {[%clk 0:02:05.6]} 1-0

[Event "Early-Titled-Tuesday-Blitz-June-18-2024"]
[Site "Chess.com"]
[Date "2024.06.18"]
[Round "5"]
[White "WiktoriaPOL"]
[Black "N_Mullodzhanov"]
[Result "0-1"]
[WhiteElo "2403"]
[BlackElo "2561"]
[TimeControl "180+1"]
[EndTime "8:53:11 PDT"]
[Termination "N_Mullodzhanov won by checkmate"]

1. c4 {[%clk 0:03:00.9]} 1... e5 {[%clk 0:02:58.2]} 2. Nc3 {[%clk 0:02:58.8]}
2... Nf6 {[%clk 0:02:57.4]} 3. Nf3 {[%clk 0:02:58.6]} 3... Nc6 {[%clk
0:02:56.4]} 4. e4 {[%clk 0:02:58.7]} 4... Bc5 {[%clk 0:02:56.2]} 5. Nxe5 {[%clk
0:02:58.6]} 5... Nxe5 {[%clk 0:02:52.4]} 6. d4 {[%clk 0:02:58]} 6... Bb4 {[%clk
0:02:52.7]} 7. dxe5 {[%clk 0:02:58.1]} 7... Nxe4 {[%clk 0:02:52.9]} 8. Qf3
{[%clk 0:02:58]} 8... Nxc3 {[%clk 0:02:50.4]} 9. bxc3 {[%clk 0:02:58]} 9... Be7
{[%clk 0:02:48.9]} 10. Qg3 {[%clk 0:02:52.3]} 10... g6 {[%clk 0:02:28.3]} 11.
Bh6 {[%clk 0:02:48.1]} 11... d6 {[%clk 0:02:23.3]} 12. O-O-O {[%clk 0:02:43]}
12... Bf5 {[%clk 0:02:18.6]} 13. exd6 {[%clk 0:02:31.3]} 13... Bxd6 {[%clk
0:02:08.6]} 14. Qf3 {[%clk 0:02:10.5]} 14... Ba3# {[%clk 0:02:00.7]} 0-1